fUST/lending_fUST_20250224
["ID","MTS","AMOUNT","RATE_DAILY","PERIOD"]
[354205039,1740347442471,-555.08480055,0.0001378,2]
[354205042,1740347442480,-500.0,0.0001378,2]
[354205044,1740347442489,-2025.2,0.0001378,2]
[354205046,1740347442498,-500.0,0.0001378,2]
[354205048,1740347442507,-201.48,0.0001378,2]
[354205050,1740347442516,-500.0,0.0001378,2]
[354205052,1740347442525,-500.0,0.0001378,2]
[354205055,1740347442534,-500.0,0.0001378,2]
[354205057,1740347442543,-1514.12,0.0001378,2]
[354205061,1740347442553,-500.0,0.0001378,2]
[354205063,1740347442562,-1210.5,0.0001378,2]
[354205066,1740347442572,-635.47,0.0001378,2]
[354205069,1740347442582,-4665.51,0.0001378,2]
[354205071,1740347442591,-639.86,0.0001378,2]
[354205073,1740347442600,-500.0,0.0001378,2]
[354205075,1740347442610,-500.0,0.0001378,2]
[354205077,1740347442619,-552.42,0.0001378,2]
[354205079,1740347442628,-500.0,0.0001378,2]
[354205081,1740347442637,-833.57,0.0001378,2]
[354205083,1740347442646,-3159.4,0.0001378,2]
[354205085,1740347442655,-201.53,0.0001378,2]
[354205087,1740347442664,-1251.95,0.0001378,2]
[354205089,1740347442673,-366.78266534,0.0001378,2]
[354205091,1740347442682,-2120.1,0.0001378,2]
[354205093,1740347442691,-16955.98,0.0001378,2]
[354205095,1740347442700,-1405.87,0.0001378,2]
[354205097,1740347442709,-1523.21,0.0001378,2]
[354205099,1740347442718,-744.6,0.0001378,2]
[354205101,1740347442727,-500.0,0.0001378,2]
[354205102,1740347442736,-500.0,0.0001378,2]
[354205104,1740347442745,-500.0,0.0001378,2]
[354205105,1740347442755,-1308.46,0.0001378,2]
[354205107,1740347442764,-714.79,0.0001378,2]
[354205109,1740347442774,-500.0,0.0001378,2]
[354205111,1740347442783,-500.0,0.0001378,2]
[354205113,1740347442792,-421.53622704,0.0001378,2]
[354205115,1740347442803,-500.0,0.0001378,2]
[354205117,1740347442812,-500.0,0.0001378,2]
[354205120,1740347442821,-500.0,0.0001378,2]
[354205121,1740347442830,-500.0,0.0001378,2]
[354205123,1740347442839,-862.2,0.0001378,2]
[354205126,1740347442849,-1030.39,0.0001378,2]
[354205127,1740347442858,-861.1685026,0.000138,2]
[354205130,1740347442867,-153.0,0.000138,2]
[354205132,1740347442876,-557.361586,0.000138,2]
[354205133,1740347442886,-153.0,0.000138,2]
[354205136,1740347442895,-183.1015315,0.000138,2]
[354205137,1740347442904,-154.796407,0.000138,2]
[354205139,1740347442913,-153.0,0.000138,2]
[354205141,1740347442922,-153.0,0.000138,2]
[354205144,1740347442931,-153.0,0.000138,2]
[354205146,1740347442940,-154.8147227,0.000138,2]
[354205148,1740347442949,-153.0,0.000138,2]
[354205150,1740347442959,-153.0,0.000138,2]
[354205152,1740347442968,-154.8147227,0.000138,2]
[354205154,1740347442977,-557.361586,0.000138,2]
[354205156,1740347442986,-153.0,0.000138,2]
[354205158,1740347442995,-153.0,0.000138,2]
[354205159,1740347443005,-153.0,0.000138,2]
[354205161,1740347443014,-153.0,0.000138,2]
[354205163,1740347443024,-153.0,0.000138,2]
[354205165,1740347443033,-557.361586,0.000138,2]
[354205167,1740347443042,-154.8147227,0.000138,2]
[354205169,1740347443052,-3000.0,0.00013845,2]
[354205171,1740347443061,-152.0,0.00013854,2]
[354205172,1740347443070,-191.95,0.00013863,2]
[354205173,1740347443079,-500.0,0.00013863,2]
[354205174,1740347443089,-500.0,0.00013863,2]
[354205175,1740347443098,-500.0,0.00013863,2]
[354205176,1740347443107,-500.0,0.00013863,2]
[354205177,1740347443117,-500.0,0.00013863,2]
[354205178,1740347443126,-500.0,0.00013863,2]
[354205179,1740347443135,-500.0,0.00013863,2]
[354205180,1740347443145,-500.0,0.00013863,2]
[354205181,1740347443154,-500.0,0.00013863,2]
[354205182,1740347443163,-578.39,0.00013863,2]
[354205183,1740347443173,-500.0,0.00013863,2]
[354205184,1740347443182,-612.04,0.00013863,2]
[354205185,1740347443192,-770.31,0.00013863,2]
[354205186,1740347443201,-500.0,0.00013863,2]
[354205187,1740347443210,-500.0,0.00013863,2]
[354205188,1740347443219,-693.43,0.00013863,2]
[354205189,1740347443228,-500.0,0.00013863,2]
[354205190,1740347443237,-500.0,0.00013863,2]
[354205191,1740347443247,-500.0,0.00013863,2]
[354205192,1740347443256,-500.0,0.00013863,2]
[354205193,1740347443265,-500.0,0.00013863,2]
[354205194,1740347443275,-6179.76,0.00013863,2]
[354205195,1740347443284,-750.49,0.00013863,2]
[354205196,1740347443293,-178.55,0.00013863,2]
[354205197,1740347443303,-2025.2,0.00013863,2]
[354205198,1740347443314,-500.0,0.00013863,2]
[354205199,1740347443323,-500.0,0.00013863,2]
[354205200,1740347443332,-500.0,0.00013863,2]
[354205201,1740347443341,-269.68,0.00013863,2]
[354205202,1740347443352,-1514.12,0.00013863,2]
[354205203,1740347443362,-500.0,0.00013863,2]
[354205204,1740347443371,-1210.5,0.00013863,2]
[354205205,1740347443382,-635.47,0.00013863,2]
[354205206,1740347443391,-4665.51,0.00013863,2]
[354205207,1740347443400,-500.0,0.00013863,2]
[354205208,1740347443409,-454.16986197,0.00013863,2]
[354205209,1740347443418,-552.42,0.00013863,2]
[354205210,1740347443427,-500.0,0.00013863,2]
[354205211,1740347443437,-833.57,0.00013863,2]
[354205212,1740347443446,-3159.4,0.00013863,2]
[354205213,1740347443456,-1251.95,0.00013863,2]
[354205214,1740347443466,-2120.1,0.00013863,2]
[354205215,1740347443475,-16955.98,0.00013863,2]
[354205216,1740347443484,-1405.87,0.00013863,2]
[354205217,1740347443494,-1523.21,0.00013863,2]
[354205218,1740347443503,-744.6,0.00013863,2]
[354205219,1740347443512,-500.0,0.00013863,2]
[354205220,1740347443522,-500.0,0.00013863,2]
[354205221,1740347443532,-500.0,0.00013863,2]
[354205222,1740347443541,-1308.46,0.00013863,2]
[354205223,1740347443551,-714.79,0.00013863,2]
[354205224,1740347443560,-500.0,0.00013863,2]
[354205225,1740347443642,-500.0,0.00013863,2]
[354205226,1740347443652,-500.0,0.00013863,2]
[354205228,1740347443662,-514.19866334,0.00013863,2]
[354205229,1740347443671,-500.0,0.00013863,2]
[354205231,1740347443680,-500.0,0.00013863,2]
[354205233,1740347443689,-862.2,0.00013863,2]
[354205235,1740347443698,-1030.39,0.00013863,2]
[354205237,1740347443708,-153.0,0.000139,2]
[354205239,1740347443717,-557.361586,0.000139,2]
[354205241,1740347443726,-153.7759031,0.000139,2]
[354205243,1740347443736,-257.129,0.000139,2]
[354205245,1740347443746,-420.0,0.00013914,2]
[354205246,1740347443755,-616.2557298,0.00013945,2]
[354205247,1740347443764,-500.0,0.00013945,2]
[354205249,1740347443773,-500.0,0.00013945,2]
[354205251,1740347443783,-247.44441094,0.00013945,2]
[354205253,1740347443792,-500.0,0.00013945,2]
[354205255,1740347443801,-500.0,0.00013945,2]
[354205257,1740347443810,-500.0,0.00013945,2]
[354205259,1740347443819,-253.90671091,0.00013945,2]
[354205260,1740347443828,-578.39,0.00013945,2]
[354205262,1740347443837,-500.0,0.00013945,2]
[354205264,1740347443847,-612.04,0.00013945,2]
[354205266,1740347443856,-770.31,0.00013945,2]
[354205268,1740347443866,-360.12553908,0.00013945,2]
[354205270,1740347443875,-500.0,0.00013945,2]
[354205272,1740347443885,-693.43,0.00013945,2]
[354205274,1740347443894,-500.0,0.00013945,2]
[354205276,1740347443903,-500.0,0.00013945,2]
[354205278,1740347443912,-500.0,0.00013945,2]
[354205280,1740347443922,-500.0,0.00013945,2]
[354205282,1740347443931,-6179.76,0.00013945,2]
[354205284,1740347443941,-750.49,0.00013945,2]
[354205286,1740347443950,-2025.2,0.00013945,2]
[354205288,1740347443959,-500.0,0.00013945,2]
[354205290,1740347443968,-248.16265711,0.00013945,2]
[354205292,1740347443977,-500.0,0.00013945,2]
[354205294,1740347443986,-1514.12,0.00013945,2]
[354205296,1740347443996,-441.34661308,0.00013945,2]
[354205298,1740347444005,-1210.5,0.00013945,2]
[354205300,1740347444014,-635.47,0.00013945,2]
[354205302,1740347444023,-4665.51,0.00013945,2]
[354205303,1740347444033,-500.0,0.00013945,2]
[354205305,1740347444042,-552.42,0.00013945,2]
[354205307,1740347444051,-500.0,0.00013945,2]
[354205308,1740347444060,-833.57,0.00013945,2]
[354205309,1740347444069,-3159.4,0.00013945,2]
[354205310,1740347444078,-1251.95,0.00013945,2]
[354205311,1740347444087,-2120.1,0.00013945,2]
[354205312,1740347444096,-16955.98,0.00013945,2]
[354205313,1740347444105,-1405.87,0.00013945,2]
[354205314,1740347444114,-1523.21,0.00013945,2]
[354205315,1740347444123,-744.6,0.00013945,2]
[354205316,1740347444132,-500.0,0.00013945,2]
[354205317,1740347444141,-500.0,0.00013945,2]
[354205318,1740347444150,-500.0,0.00013945,2]
[354205319,1740347444159,-1308.46,0.00013945,2]
[354205320,1740347444168,-714.79,0.00013945,2]
[354205321,1740347444177,-500.0,0.00013945,2]
[354205322,1740347444186,-500.0,0.00013945,2]
[354205323,1740347444195,-500.0,0.00013945,2]
[354205324,1740347444205,-500.0,0.00013945,2]
[354205325,1740347444214,-351.42230915,0.00013945,2]
[354205326,1740347444223,-862.2,0.00013945,2]
[354205327,1740347444232,-1030.39,0.00013945,2]
[354205328,1740347444241,-185.448,0.00013969,2]
[354205329,1740347444250,-396.0,0.00013969,2]
[354205330,1740347444259,-254.026,0.00013969,2]
[354205331,1740347444268,-500.0,0.00013973,2]
[354205333,1740347444277,-500.0,0.00013973,2]
[354205335,1740347444287,-64662.6902546,0.0001399,2]
[354205337,1740347444296,-500.0,0.00013999,2]
[354205338,1740347444308,-500.0,0.00013999,2]
[354205340,1740347444317,-257.12851728,0.00013999,2]
[354205342,1740347444327,-122529.90865748,0.00014,2]
[354205345,1740347444341,-919.44999974,0.00014,2]
[354205360,1740347444512,-500.0,0.00013698,2]
[354205361,1740347444521,-191.704,0.00013969,2]
[354205362,1740347444530,-6656.67189216,0.00014,2]
[354205363,1740347444545,-80101.87052361,0.00014,2]
[354205364,1740347444555,-501.0,0.00014,2]
[354205365,1740347444564,-151.0,0.00014,2]
[354205366,1740347444573,-151.0,0.00014,2]
[354205367,1740347444582,-300.0,0.00014,4]
[354205368,1740347444591,-153.0,0.00014,2]
[354205369,1740347444600,-557.361586,0.00014,2]
[354205370,1740347444609,-154.8147227,0.00014,2]
[354205371,1740347444618,-153.0,0.00014,2]
[354205372,1740347444627,-153.0,0.00014,2]
[354205373,1740347444636,-166.0,0.00014,2]
[354205374,1740347444645,-166.0,0.00014,2]
[354205375,1740347444654,-166.0,0.00014,2]
[354205376,1740347444663,-252.0,0.00014,2]
[354205377,1740347444673,-151.0,0.00014,2]
[354205378,1740347444682,-623.0,0.00014,2]
[354205379,1740347444691,-526.1754,0.00014,2]
[354205380,1740347444700,-526.1754,0.00014,2]
[354205381,1740347444709,-151.0,0.00014,2]
[354205382,1740347444718,-249553.20110723,0.00014,2]
[354205383,1740347444727,-1353.89393837,0.00014003,2]
[354205384,1740347444736,-500.0,0.00014027,2]
[354205385,1740347444745,-150.24,0.00014027,2]
[354205386,1740347444755,-205.76,0.00014027,2]
[354205387,1740347444764,-500.0,0.00014027,2]
[354205388,1740347444774,-500.0,0.00014027,2]
[354205389,1740347444783,-500.0,0.00014027,2]
[354205390,1740347444793,-628.63,0.00014027,2]
[354205391,1740347444802,-578.39,0.00014027,2]
[354205392,1740347444811,-500.0,0.00014027,2]
[354205393,1740347444819,-612.04,0.00014027,2]
[354205394,1740347444829,-770.31,0.00014027,2]
[354205395,1740347444838,-500.0,0.00014027,2]
[354205396,1740347444847,-693.43,0.00014027,2]
[354205397,1740347444856,-500.0,0.00014027,2]
[354205398,1740347444865,-500.0,0.00014027,2]
[354205399,1740347444874,-500.0,0.00014027,2]
[354205400,1740347444883,-500.0,0.00014027,2]
[354205401,1740347444893,-6179.76,0.00014027,2]
[354205402,1740347444902,-750.49,0.00014027,2]
[354205403,1740347444911,-2025.2,0.00014027,2]
[354205405,1740347444920,-500.0,0.00014027,2]
[354205407,1740347444928,-500.0,0.00014027,2]
[354205409,1740347444938,-1514.12,0.00014027,2]
[354205411,1740347444947,-1210.5,0.00014027,2]
[354205413,1740347444956,-635.47,0.00014027,2]
[354205415,1740347444966,-4665.51,0.00014027,2]
[354205417,1740347444975,-500.0,0.00014027,2]
[354205419,1740347444984,-552.42,0.00014027,2]
[354205421,1740347444993,-500.0,0.00014027,2]
[354205423,1740347445003,-833.57,0.00014027,2]
[354205425,1740347445012,-3159.4,0.00014027,2]
[354205427,1740347445022,-1251.95,0.00014027,2]
[354205429,1740347445031,-2120.1,0.00014027,2]
[354205431,1740347445041,-16955.98,0.00014027,2]
[354205433,1740347445051,-1405.87,0.00014027,2]
[354205435,1740347445061,-1523.21,0.00014027,2]
[354205437,1740347445070,-744.6,0.00014027,2]
[354205439,1740347445080,-500.0,0.00014027,2]
[354205441,1740347445089,-500.0,0.00014027,2]
[354205443,1740347445098,-230.39650282,0.00014027,2]
[354205445,1740347445107,-1308.46,0.00014027,2]
[354205447,1740347445117,-500.0,0.00014027,2]
[354205449,1740347445126,-500.0,0.00014027,2]
[354205451,1740347445135,-150.24,0.00014027,2]
[354205453,1740347445144,-500.0,0.00014027,2]
[354205455,1740347445152,-150.24,0.00014027,2]
[354205457,1740347445162,-714.79,0.00014027,2]
[354205459,1740347445170,-150.24,0.00014027,2]
[354205461,1740347445179,-500.0,0.00014027,2]
[354205463,1740347445189,-950.0,0.00014027,2]
[354205465,1740347445198,-500.0,0.00014027,2]
[354205467,1740347445207,-500.0,0.00014027,2]
[354205469,1740347445217,-150.24,0.00014027,2]
[354205471,1740347445226,-500.0,0.00014027,2]
[354205473,1740347445234,-500.0,0.00014027,2]
[354205475,1740347445244,-150.24,0.00014027,2]
[354205477,1740347445253,-500.0,0.00014027,2]
[354205479,1740347445262,-164.53102008,0.00014027,2]
[354205481,1740347445271,-205.07939755,0.00014027,2]
[354205482,1740347445280,-500.0,0.00014027,2]
[354205484,1740347445289,-167.02772329,0.00014027,2]
[354205486,1740347445298,-500.0,0.00014027,2]
[354205489,1740347445312,-150.24,0.00014027,2]
[354205492,1740347445321,-150.24,0.00014027,2]
[354205495,1740347445330,-150.24,0.00014027,2]
[354205498,1740347445339,-150.24,0.00014027,2]
[354205501,1740347445348,-500.0,0.00014027,2]
[354205504,1740347445359,-150.24,0.00014027,2]
[354205507,1740347445367,-862.2,0.00014027,2]
[354205521,1740347445442,-1030.39,0.00014027,2]
[354205522,1740347445462,-500.0,0.00014034,2]
[354205523,1740347445472,-9579.73029185,0.0001405,2]
[354205525,1740347445482,-151.0,0.000141,2]
[354205526,1740347445492,-151.0,0.000141,2]
[354205527,1740347445502,-398.62607283,0.00014109,2]
[354205528,1740347445513,-500.0,0.00014109,2]
[354205529,1740347445523,-500.0,0.00014109,2]
[354205530,1740347445532,-578.39,0.00014109,2]
[354205531,1740347445542,-500.0,0.00014109,2]
[354205532,1740347445552,-612.04,0.00014109,2]
[354205533,1740347445561,-770.31,0.00014109,2]
[354205534,1740347445571,-500.0,0.00014109,2]
[354205535,1740347445580,-693.43,0.00014109,2]
[354205536,1740347445589,-500.0,0.00014109,2]
[354205537,1740347445598,-500.0,0.00014109,2]
[354205538,1740347445607,-500.0,0.00014109,2]
[354205539,1740347445616,-500.0,0.00014109,2]
[354205540,1740347445625,-6179.76,0.00014109,2]
[354205541,1740347445634,-750.49,0.00014109,2]
[354205542,1740347445643,-2025.2,0.00014109,2]
[354205543,1740347445652,-156.22,0.00014109,2]
[354205544,1740347445661,-500.0,0.00014109,2]
[354205545,1740347445671,-1514.12,0.00014109,2]
[354205546,1740347445679,-1210.5,0.00014109,2]
[354205547,1740347445690,-635.47,0.00014109,2]
[354205548,1740347445699,-4665.51,0.00014109,2]
[354205549,1740347445708,-500.0,0.00014109,2]
[354205550,1740347445717,-552.42,0.00014109,2]
[354205551,1740347445727,-500.0,0.00014109,2]
[354205552,1740347445736,-833.57,0.00014109,2]
[354205553,1740347445745,-3159.4,0.00014109,2]
[354205554,1740347445754,-1251.95,0.00014109,2]
[354205555,1740347445763,-2120.1,0.00014109,2]
[354205556,1740347445772,-16955.98,0.00014109,2]
[354205557,1740347445781,-1405.87,0.00014109,2]
[354205558,1740347445791,-1523.21,0.00014109,2]
[354205560,1740347445800,-744.6,0.00014109,2]
[354205562,1740347445810,-500.0,0.00014109,2]
[354205564,1740347445819,-500.0,0.00014109,2]
[354205566,1740347445828,-1308.46,0.00014109,2]
[354205568,1740347445837,-714.79,0.00014109,2]
[354205570,1740347445846,-500.0,0.00014109,2]
[354205572,1740347445856,-500.0,0.00014109,2]
[354205574,1740347445865,-500.0,0.00014109,2]
[354205576,1740347445875,-500.0,0.00014109,2]
[354205578,1740347445884,-862.2,0.00014109,2]
[354205580,1740347445893,-1030.39,0.00014109,2]
[354205582,1740347445902,-500.0,0.00014191,2]
[354205584,1740347445912,-310.83940848,0.00014191,2]
[354205586,1740347445921,-578.39,0.00014191,2]
[354205588,1740347445930,-500.0,0.00014191,2]
[354205590,1740347445940,-612.04,0.00014191,2]
[354205592,1740347445951,-770.31,0.00014191,2]
[354205594,1740347445960,-500.0,0.00014191,2]
[354205597,1740347445969,-693.43,0.00014191,2]
[354205600,1740347445978,-500.0,0.00014191,2]
[354205602,1740347445987,-500.0,0.00014191,2]
[354205604,1740347445997,-500.0,0.00014191,2]
[354205606,1740347446006,-500.0,0.00014191,2]
[354205608,1740347446015,-6179.76,0.00014191,2]
[354205610,1740347446024,-750.49,0.00014191,2]
[354205612,1740347446033,-2025.2,0.00014191,2]
[354205614,1740347446043,-500.0,0.00014191,2]
[354205616,1740347446052,-1514.12,0.00014191,2]
[354205618,1740347446062,-1210.5,0.00014191,2]
[354205620,1740347446071,-635.47,0.00014191,2]
[354205622,1740347446081,-4665.51,0.00014191,2]
[354205624,1740347446090,-500.0,0.00014191,2]
[354205626,1740347446099,-552.42,0.00014191,2]
[354205628,1740347446108,-500.0,0.00014191,2]
[354205630,1740347446117,-833.57,0.00014191,2]
[354205632,1740347446126,-3159.4,0.00014191,2]
[354205634,1740347446135,-1251.95,0.00014191,2]
[354205636,1740347446145,-2120.1,0.00014191,2]
[354205638,1740347446154,-1405.87,0.00014191,2]
[354205640,1740347446163,-1523.21,0.00014191,2]
[354205642,1740347446172,-744.6,0.00014191,2]
[354205644,1740347446181,-500.0,0.00014191,2]
[354205647,1740347446191,-500.0,0.00014191,2]
[354205649,1740347446200,-1308.46,0.00014191,2]
[354205651,1740347446210,-714.79,0.00014191,2]
[354205653,1740347446219,-500.0,0.00014191,2]
[354205655,1740347446228,-500.0,0.00014191,2]
[354205657,1740347446237,-500.0,0.00014191,2]
[354205659,1740347446246,-500.0,0.00014191,2]
[354205661,1740347446255,-862.2,0.00014191,2]
[354205663,1740347446264,-1030.39,0.00014191,2]
[354205665,1740347446273,-177.40539402,0.00014191,2]
[354205667,1740347446282,-341.4399799,0.00014198,2]
[354205669,1740347446291,-355.3336689,0.00014198,2]
[354205671,1740347446301,-355.3336689,0.00014198,2]
[354205673,1740347446317,-355.293833,0.00014198,2]
[354205675,1740347446326,-1000.0,0.00014221,2]
[354205677,1740347446335,-525.03810445,0.00014221,2]
[354205679,1740347446345,-500.0,0.00014221,2]
[354205681,1740347446356,-355.3336689,0.00014231,2]
[354205683,1740347446365,-355.3336689,0.00014231,2]
[354205685,1740347446374,-355.3336689,0.00014231,2]
[354205687,1740347446386,-161.414143,0.00014248,4]
[354205689,1740347446396,-35431.91930527,0.0001427,2]
[354205701,1740347446496,-500.0,0.00013698,2]
[354205703,1740347446506,-24863.4573,0.0001427,2]
[354207115,1740347835336,237.387984,9.041e-05,2]
[354207363,1740348640507,-500.0,0.00012664,2]
[354207365,1740348640518,-300.0,0.00012712,2]
[354207367,1740348640527,-3647.77153542,0.00012713,2]
[354207369,1740348640540,-3080.6,0.00012713,2]
[354207655,1740348643124,-951.94,0.00012713,2]
[354207662,1740348643182,-17219.68846458,0.00012713,2]
[354207664,1740348643191,-154.13709595,0.00013598,2]
[354207666,1740348643201,-500.0,0.00013698,2]
[354207668,1740348643210,-500.0,0.00013698,2]
[354207670,1740348643219,-500.0,0.00013698,2]
[354207672,1740348643229,-500.0,0.00013698,2]
[354207674,1740348643238,-500.0,0.00013698,2]
[354207676,1740348643247,-500.0,0.00013698,2]
[354207678,1740348643257,-500.0,0.00013698,2]
[354207681,1740348643266,-510.14037732,0.00013698,2]
[354207682,1740348643275,-349.66117496,0.00013698,2]
[354207685,1740348643284,-500.0,0.00013698,2]
[354207687,1740348643294,-614.22994079,0.00013698,2]
[354207688,1740348643303,-500.0,0.00013698,2]
[354207691,1740348643312,-505.80435576,0.00013698,2]
[354207693,1740348643321,-500.0,0.00013698,2]
[354207695,1740348643331,-500.0,0.00013698,2]
[354207697,1740348643340,-500.0,0.00013698,2]
[354207699,1740348643349,-500.0,0.00013698,2]
[354207701,1740348643358,-500.0,0.00013698,2]
[354207703,1740348643368,-500.0,0.00013698,2]
[354207705,1740348643377,-499.92136827,0.00013698,2]
[354207707,1740348643386,-500.0,0.00013698,2]
[354207709,1740348643395,-500.0,0.00013698,2]
[354207711,1740348643405,-501.01976374,0.00013698,2]
[354207713,1740348643414,-500.0,0.00013698,2]
[354207715,1740348643423,-500.0,0.00013698,2]
[354207717,1740348643433,-500.0,0.00013698,2]
[354207719,1740348643442,-500.0,0.00013698,2]
[354207721,1740348643451,-500.0,0.00013698,2]
[354207723,1740348643460,-500.0,0.00013698,2]
[354207725,1740348643469,-500.0,0.00013698,2]
[354207727,1740348643478,-500.0,0.00013698,2]
[354207729,1740348643488,-506.32409216,0.00013698,2]
[354207731,1740348643497,-500.8754972,0.00013698,2]
[354207733,1740348643506,-500.0,0.00013698,2]
[354207735,1740348643515,-500.0,0.00013698,2]
[354207737,1740348643526,-500.0,0.00013698,2]
[354207739,1740348643535,-500.0,0.00013698,2]
[354207741,1740348643544,-500.0,0.00013698,2]
[354207743,1740348643554,-529.96,0.00013698,2]
[354207745,1740348643564,-1014.36,0.00013698,2]
[354207747,1740348643574,-500.0,0.00013698,2]
[354207749,1740348643583,-500.0,0.00013698,2]
[354207751,1740348643592,-500.0,0.00013698,2]
[354207753,1740348643601,-500.0,0.00013698,2]
[354207755,1740348643610,-500.0,0.00013698,2]
[354207757,1740348643619,-500.0,0.00013698,2]
[354207759,1740348643628,-500.0,0.00013698,2]
[354207761,1740348643638,-500.0,0.00013698,2]
[354207763,1740348643648,-500.0,0.00013698,2]
[354207765,1740348643657,-182.32,0.00013698,2]
[354207767,1740348643666,-500.0,0.00013698,2]
[354207769,1740348643676,-500.0,0.00013698,2]
[354207771,1740348643685,-500.0,0.00013698,2]
[354207773,1740348643695,-500.0,0.00013698,2]
[354207775,1740348643704,-512.01,0.00013698,2]
[354207776,1740348643713,-500.0,0.00013698,2]
[354207779,1740348643723,-500.0,0.00013698,2]
[354207780,1740348643732,-500.0,0.00013698,2]
[354207782,1740348643741,-500.0,0.00013698,2]
[354207784,1740348643750,-500.0,0.00013698,2]
[354207786,1740348643759,-500.0,0.00013698,2]
[354207788,1740348643769,-500.0,0.00013698,2]
[354207790,1740348643778,-500.0,0.00013698,2]
[354207793,1740348643787,-729.86,0.00013698,2]
[354207795,1740348643797,-505.02840841,0.00013698,2]
[354207797,1740348643807,-500.0,0.00013698,2]
[354207799,1740348643816,-500.0,0.00013698,2]
[354207801,1740348643825,-500.0,0.00013698,2]
[354207803,1740348643834,-500.0,0.00013698,2]
[354207805,1740348643845,-500.0,0.00013698,2]
[354207807,1740348643854,-500.0,0.00013698,2]
[354207809,1740348643863,-500.0,0.00013698,2]
[354207811,1740348643872,-500.0,0.00013698,2]
[354207814,1740348643890,-500.0,0.00013698,2]
[354207816,1740348643901,-1434.52,0.00013698,2]
[354207818,1740348643911,-501.71580436,0.00013698,2]
[354207820,1740348643920,-500.0,0.00013698,2]
[354207822,1740348643931,-203.917016,0.00013698,2]
[354207824,1740348643941,-521.98,0.00013698,2]
[354207826,1740348643951,-521.98,0.00013698,2]
[354207828,1740348643961,-521.98,0.00013698,2]
[354207830,1740348643970,-500.0,0.00013698,2]
[354207833,1740348643980,-4695.07,0.00013698,2]
[354207835,1740348643990,-500.0,0.00013698,2]
[354207837,1740348643999,-610.73,0.00013698,2]
[354207838,1740348644013,-500.0,0.00013698,2]
[354207841,1740348644026,-500.0,0.00013698,2]
[354207843,1740348644036,-531.6,0.00013698,2]
[354207845,1740348644046,-500.0,0.00013698,2]
[354207847,1740348644056,-500.0,0.00013698,2]
[354207849,1740348644066,-500.0,0.00013698,2]
[354207851,1740348644075,-501.19130057,0.00013698,2]
[354207853,1740348644085,-500.0,0.00013698,2]
[354207855,1740348644095,-500.0,0.00013698,2]
[354207857,1740348644104,-500.0,0.00013698,2]
[354207859,1740348644114,-499.02550486,0.00013698,2]
[354207861,1740348644123,-500.0,0.00013698,2]
[354207863,1740348644132,-500.0,0.00013698,2]
[354207865,1740348644142,-529.60134002,0.00013698,2]
[354207867,1740348644151,-500.0,0.00013698,2]
[354207869,1740348644161,-500.0,0.00013698,2]
[354207872,1740348644170,-500.0,0.00013698,2]